fUST/lending_fUST_20250912
["ID","MTS","AMOUNT","RATE_DAILY","PERIOD"]
[384903692,1757623849618,-480.0,0.00015097,2]
[384903693,1757623849627,-480.0,0.00015097,2]
[384903694,1757623849636,-393.10521462,0.00015097,2]
[384903695,1757623849646,-151.0,0.00015097,2]
[384903696,1757623849656,-151.0,0.00015097,2]
[384903697,1757623849665,-151.0,0.00015097,2]
[384903698,1757623849675,-152.189506,0.00015097,2]
[384903699,1757623849684,-301.764,0.00015097,2]
[384903700,1757623849693,-151.0,0.000151,2]
[384903701,1757623849703,-151.0,0.000152,2]
[384903702,1757623849712,-420.0,0.00015226,2]
[384903703,1757623849721,-248.94,0.00015268,2]
[384903704,1757623849730,-480.0,0.00015268,2]
[384903705,1757623849740,-480.0,0.00015268,2]
[384903706,1757623849749,-1040.91,0.00015268,2]
[384903707,1757623849759,-480.0,0.00015268,2]
[384903708,1757623849768,-500.0,0.00015291,2]
[384903709,1757623849777,-151.0,0.000153,2]
[384903710,1757623849786,-151.0,0.00015344,2]
[384903711,1757623849796,-151.0,0.00015344,2]
[384903712,1757623849805,-151.0,0.00015344,2]
[384903713,1757623849814,-151.0,0.00015344,2]
[384903714,1757623849822,-151.0,0.00015344,2]
[384903715,1757623849832,-271.666405,0.00015344,2]
[384903716,1757623849840,-151.0,0.00015344,2]
[384903717,1757623849850,-151.0,0.00015344,2]
[384903718,1757623849859,-480.0,0.00015367,2]
[384903719,1757623849868,-480.0,0.00015367,2]
[384903720,1757623849880,-588.7,0.00015367,2]
[384903721,1757623849896,-480.0,0.00015367,2]
[384903722,1757623849910,-480.0,0.00015367,2]
[384903723,1757623849923,-480.0,0.00015367,2]
[384903724,1757623849937,-480.0,0.00015367,2]
[384903725,1757623849953,-480.0,0.00015367,2]
[384903726,1757623849967,-480.0,0.00015367,2]
[384903727,1757623849982,-480.0,0.00015367,2]
[384903728,1757623849994,-480.0,0.00015367,2]
[384903729,1757623850008,-480.0,0.00015367,2]
[384903730,1757623850020,-480.0,0.00015367,2]
[384903731,1757623850035,-480.0,0.00015367,2]
[384903732,1757623850049,-480.0,0.00015367,2]
[384903733,1757623850060,-480.0,0.00015367,2]
[384903734,1757623850072,-480.0,0.00015367,2]
[384903735,1757623850086,-635.09,0.00015367,2]
[384903736,1757623850101,-480.0,0.00015367,2]
[384903737,1757623850117,-1459.67,0.00015367,2]
[384903738,1757623850132,-1066.04,0.00015367,2]
[384903739,1757623850143,-480.0,0.00015367,2]
[384903740,1757623850155,-388.0,0.00015367,2]
[384903741,1757623850168,-1378.47,0.00015367,2]
[384903742,1757623850183,-917.24,0.00015367,2]
[384903743,1757623850195,-480.0,0.00015367,2]
[384903744,1757623850207,-422.0038296,0.00015367,2]
[384903745,1757623850220,-309.96675292,0.00015367,2]
[384903746,1757623850232,-1230.82,0.00015367,2]
[384903747,1757623850243,-480.0,0.00015367,2]
[384903748,1757623850255,-480.0,0.00015367,2]
[384903749,1757623850266,-574.62,0.00015367,2]
[384903750,1757623850279,-929.07,0.00015367,2]
[384903751,1757623850290,-480.0,0.00015367,2]
[384903752,1757623850302,-480.0,0.00015367,2]
[384903753,1757623850314,-845.24,0.00015367,2]
[384903754,1757623850327,-577.1,0.00015367,2]
[384903755,1757623850340,-480.0,0.00015367,2]
[384903756,1757623850351,-480.0,0.00015367,2]
[384903757,1757623850364,-480.0,0.00015367,2]
[384903758,1757623850376,-480.0,0.00015367,2]
[384903759,1757623850389,-480.0,0.00015367,2]
[384903760,1757623850401,-480.0,0.00015367,2]
[384903761,1757623850413,-480.0,0.00015367,2]
[384903762,1757623850425,-1302.02,0.00015367,2]
[384903763,1757623850437,-480.0,0.00015367,2]
[384903764,1757623850448,-480.0,0.00015367,2]
[384903765,1757623850460,-488.58,0.00015367,2]
[384903766,1757623850472,-480.0,0.00015367,2]
[384903767,1757623850484,-480.0,0.00015367,2]
[384903768,1757623850496,-480.0,0.00015367,2]
[384903769,1757623850508,-480.0,0.00015367,2]
[384903770,1757623850520,-480.0,0.00015367,2]
[384903771,1757623850533,-480.0,0.00015367,2]
[384903772,1757623850545,-151.0,0.00015368,2]
[384903773,1757623850557,-151.0,0.00015368,2]
[384903774,1757623850569,-151.0,0.00015368,2]
[384903775,1757623850581,-151.0,0.00015368,2]
[384903776,1757623850593,-151.0,0.00015368,2]
[384903777,1757623850608,-151.0,0.00015368,2]
[384903778,1757623850621,-1167.17,0.00015368,2]
[384903779,1757623850634,-480.0,0.00015368,2]
[384903780,1757623850646,-4528.86,0.00015368,2]
[384903781,1757623850658,-576.59,0.00015368,2]
[384903782,1757623850670,-1294.97,0.00015368,2]
[384903783,1757623850682,-1562.37,0.00015368,2]
[384903784,1757623850695,-480.0,0.00015368,2]
[384903785,1757623850707,-480.0,0.00015368,2]
[384903786,1757623850720,-13912.0,0.00015368,2]
[384903787,1757623850732,-480.0,0.00015368,2]
[384903788,1757623850744,-787.931978,0.00015368,2]
[384903789,1757623850756,-787.931978,0.00015368,2]
[384903790,1757623850768,-787.931978,0.00015368,2]
[384903791,1757623850781,-787.931978,0.00015368,2]
[384903792,1757623850793,-480.0,0.00015369,2]
[384903793,1757623850906,-480.0,0.00015369,2]
[384903794,1757623850924,-480.0,0.00015369,2]
[384903795,1757623850934,-480.0,0.00015369,2]
[384903796,1757623850944,-151.0,0.00015369,2]
[384903797,1757623850954,-480.0,0.00015369,2]
[384903798,1757623850963,-480.0,0.00015369,2]
[384903799,1757623850973,-151.000001,0.00015369,2]
[384903800,1757623850983,-480.0,0.00015369,2]
[384903801,1757623850992,-480.0,0.00015369,2]
[384903802,1757623851001,-480.0,0.00015369,2]
[384903803,1757623851011,-480.0,0.00015369,2]
[384903804,1757623851020,-480.0,0.00015369,2]
[384903805,1757623851029,-480.0,0.00015369,2]
[384903806,1757623851038,-480.0,0.0001537,2]
[384903807,1757623851048,-480.0,0.00015371,2]
[384903808,1757623851057,-480.0,0.00015371,2]
[384903809,1757623851066,-480.0,0.00015371,2]
[384903810,1757623851075,-720.0,0.00015401,2]
[384903811,1757623851085,-2183.31810187,0.00015449,2]
[384903812,1757623851094,-163.151285,0.00015476,2]
[384903813,1757623851103,-1000.0,0.00015488,2]
[384903814,1757623851113,-151.0,0.000155,2]
[384903815,1757623851122,-1000.0,0.00015517,2]
[384903816,1757623851131,-500.0,0.00015517,2]
[384903817,1757623851141,-1000.0,0.00015517,2]
[384903818,1757623851150,-608.13073401,0.00015517,2]
[384903819,1757623851159,-500.0,0.00015517,2]
[384903820,1757623851168,-667.91943825,0.00015517,2]
[384903821,1757623851177,-992.53886774,0.00015517,2]
[384903822,1757623851188,-500.0,0.00015517,2]
[384903823,1757623851197,-1000.0,0.00015517,2]
[384903824,1757623851206,-500.0,0.00015517,2]
[384903825,1757623851216,-1000.0,0.00015527,2]
[384903826,1757623851225,-501.46562406,0.00015527,2]
[384903827,1757623851234,-501.86825132,0.00015527,2]
[384903828,1757623851243,-500.0,0.00015527,2]
[384903829,1757623851253,-500.0,0.00015527,2]
[384903830,1757623851262,-151.0,0.00015527,2]
[384903831,1757623851273,-480.0,0.00015542,2]
[384903832,1757623851282,-480.0,0.00015542,2]
[384903833,1757623851291,-1040.91,0.00015542,2]
[384903834,1757623851301,-480.0,0.00015542,2]
[384903835,1757623851310,-1000.0,0.00015572,2]
[384903836,1757623851319,-500.0,0.00015572,2]
[384903837,1757623851328,-1000.0,0.00015591,2]
[384903838,1757623851337,-500.0,0.00015591,2]
[384903839,1757623851347,-1000.0,0.00015623,2]
[384903840,1757623851356,-480.0,0.00015641,2]
[384903841,1757623851365,-480.0,0.00015641,2]
[384903842,1757623851374,-480.0,0.00015641,2]
[384903843,1757623851383,-480.0,0.00015641,2]
[384903844,1757623851392,-480.0,0.00015641,2]
[384903845,1757623851401,-480.0,0.00015641,2]
[384903846,1757623851411,-480.0,0.00015641,2]
[384903847,1757623851420,-480.0,0.00015641,2]
[384903848,1757623851429,-480.0,0.00015641,2]
[384903849,1757623851439,-480.0,0.00015641,2]
[384903850,1757623851449,-480.0,0.00015641,2]
[384903851,1757623851459,-480.0,0.00015641,2]
[384903852,1757623851468,-635.09,0.00015641,2]
[384903853,1757623851477,-480.0,0.00015641,2]
[384903854,1757623851487,-1459.67,0.00015641,2]
[384903855,1757623851496,-1066.04,0.00015641,2]
[384903856,1757623851506,-480.0,0.00015641,2]
[384903857,1757623851516,-1378.47,0.00015641,2]
[384903858,1757623851525,-917.24,0.00015641,2]
[384903859,1757623851534,-480.0,0.00015641,2]
[384903860,1757623851544,-1230.82,0.00015641,2]
[384903861,1757623851553,-480.0,0.00015641,2]
[384903862,1757623851562,-480.0,0.00015641,2]
[384903863,1757623851572,-929.07,0.00015641,2]
[384903864,1757623851581,-151.0,0.00015641,2]
[384903865,1757623851590,-151.0,0.00015641,2]
[384903866,1757623851601,-151.0,0.00015641,2]
[384903867,1757623851613,-151.0,0.00015641,2]
[384903868,1757623851623,-151.0,0.00015641,2]
[384903869,1757623851632,-151.0,0.00015641,2]
[384903870,1757623851643,-229.900128,0.00015641,2]
[384903871,1757623851652,-480.0,0.00015641,2]
[384903872,1757623851662,-480.0,0.00015641,2]
[384903873,1757623851671,-845.24,0.00015641,2]
[384903874,1757623851683,-251.821172,0.00015641,2]
[384903875,1757623851693,-515.28,0.00015641,2]
[384903876,1757623851702,-251.821172,0.00015641,2]
[384903877,1757623851711,-251.821172,0.00015641,2]
[384903878,1757623851720,-251.821172,0.00015641,2]
[384903879,1757623851729,-480.0,0.00015641,2]
[384903880,1757623851739,-480.0,0.00015641,2]
[384903881,1757623851748,-612.95,0.00015641,2]
[384903882,1757623851757,-595.11,0.00015641,2]
[384903883,1757623851767,-151.0,0.00015641,2]
[384903884,1757623851776,-177.275066,0.00015641,2]
[384903885,1757623851784,-177.275066,0.00015641,2]
[384903886,1757623851794,-177.275066,0.00015641,2]
[384903887,1757623851803,-177.275066,0.00015641,2]
[384903888,1757623851812,-480.0,0.00015641,2]
[384903889,1757623851821,-283.106688,0.00015641,2]
[384903890,1757623851831,-283.106688,0.00015641,2]
[384903891,1757623851840,-283.106688,0.00015641,2]
[384903892,1757623851850,-283.106688,0.00015641,2]
[384903893,1757623851859,-151.0,0.00015641,2]
[384903894,1757623851869,-480.0,0.00015641,2]
[384903895,1757623851878,-1302.02,0.00015641,2]
[384903896,1757623851888,-151.0,0.00015641,2]
[384903897,1757623851897,-480.0,0.00015641,2]
[384903898,1757623851907,-480.0,0.00015641,2]
[384903899,1757623851916,-480.0,0.00015641,2]
[384903900,1757623851925,-480.0,0.00015641,2]
[384903901,1757623851934,-480.0,0.00015641,2]
[384903902,1757623851943,-480.0,0.00015641,2]
[384903903,1757623851953,-480.0,0.00015641,2]
[384903904,1757623851962,-480.0,0.00015641,2]
[384903905,1757623851971,-151.0,0.00015642,2]
[384903906,1757623851980,-151.0,0.00015642,2]
[384903907,1757623851990,-288.209064,0.00015642,2]
[384903908,1757623851999,-151.0,0.00015642,2]
[384903909,1757623852008,-151.0,0.00015642,2]
[384903910,1757623852017,-204.157139,0.00015642,2]
[384903911,1757623852026,-204.157139,0.00015642,2]
[384903912,1757623852036,-204.157139,0.00015642,2]
[384903913,1757623852046,-1167.17,0.00015642,2]
[384903914,1757623852055,-204.157139,0.00015642,2]
[384903915,1757623852065,-151.0,0.00015642,2]
[384903916,1757623852076,-480.0,0.00015642,2]
[384903917,1757623852086,-151.0,0.00015642,2]
[384903918,1757623852096,-944.906474,0.00015642,2]
[384903919,1757623852106,-944.906474,0.00015642,2]
[384903921,1757623852115,-944.906474,0.00015642,2]
[384903922,1757623852126,-944.906474,0.00015642,2]
[384903923,1757623852138,-4528.86,0.00015642,2]
[384903924,1757623852149,-237.785628,0.00015642,2]
[384903925,1757623852160,-237.785628,0.00015642,2]
[384903926,1757623852171,-237.785628,0.00015642,2]
[384903927,1757623852185,-237.785628,0.00015642,2]
[384903928,1757623852197,-576.59,0.00015642,2]
[384903929,1757623852207,-189.830884,0.00015642,2]
[384903930,1757623852218,-189.830884,0.00015642,2]
[384903931,1757623852228,-189.830884,0.00015642,2]
[384903932,1757623852239,-189.830884,0.00015642,2]
[384903933,1757623852249,-151.0,0.00015642,2]
[384903934,1757623852259,-652.976066,0.00015642,2]
[384903935,1757623852269,-652.976066,0.00015642,2]
[384903936,1757623852280,-652.976066,0.00015642,2]
[384903937,1757623852291,-652.976066,0.00015642,2]
[384903938,1757623852303,-1294.97,0.00015642,2]
[384903939,1757623852318,-1562.37,0.00015642,2]
[384903940,1757623852328,-480.0,0.00015642,2]
[384903941,1757623852339,-480.0,0.00015642,2]
[384903942,1757623852350,-13912.0,0.00015642,2]
[384903943,1757623852361,-480.0,0.00015642,2]
[384903944,1757623852371,-480.0,0.00015643,2]
[384903945,1757623852381,-480.0,0.00015643,2]
[384903946,1757623852392,-480.0,0.00015643,2]
[384903947,1757623852402,-480.0,0.00015643,2]
[384903948,1757623852412,-480.0,0.00015643,2]
[384903949,1757623852422,-480.0,0.00015643,2]
[384903950,1757623852431,-189.1391207,0.00015643,2]
[384903951,1757623852440,-412.47261092,0.00015643,2]
[384903952,1757623852450,-480.0,0.00015643,2]
[384903953,1757623852462,-480.0,0.00015643,2]
[384903954,1757623852472,-480.0,0.00015643,2]
[384903955,1757623852482,-480.0,0.00015645,2]
[384903956,1757623852491,-480.0,0.00015645,2]
[384903957,1757623852500,-243.06,0.00015645,2]
[384903958,1757623852510,-151.0,0.000157,2]
[384903959,1757623852520,-168.0,0.0001572,2]
[384903960,1757623852529,-168.0,0.00015808,2]
[384903961,1757623852539,-480.0,0.00015816,2]
[384903962,1757623852550,-449.04,0.00015816,2]
[384903963,1757623852559,-1040.91,0.00015816,2]
[384903964,1757623852569,-480.0,0.00015816,2]
[384903965,1757623852579,-480.0,0.00015915,2]
[384903966,1757623852588,-480.0,0.00015915,2]
[384903967,1757623852601,-480.0,0.00015915,2]
[384903968,1757623852614,-480.0,0.00015915,2]
[384903969,1757623852624,-151.0,0.00015915,2]
[384903970,1757623852634,-151.0,0.00015915,2]
[384903971,1757623852643,-480.0,0.00015915,2]
[384903972,1757623852653,-151.0,0.00015915,2]
[384903973,1757623852662,-151.0,0.00015915,2]
[384903974,1757623852672,-480.0,0.00015915,2]
[384903975,1757623852681,-151.0,0.00015915,2]
[384903976,1757623852691,-480.0,0.00015915,2]
[384903977,1757623852701,-480.0,0.00015915,2]
[384903978,1757623852710,-151.0,0.00015915,2]
[384903979,1757623852719,-151.0,0.00015915,2]
[384903980,1757623852730,-156.540152,0.00015915,2]
[384903981,1757623852741,-480.0,0.00015915,2]
[384903982,1757623852750,-480.0,0.00015915,2]
[384903983,1757623852759,-635.09,0.00015915,2]
[384903984,1757623852769,-480.0,0.00015915,2]
[384903985,1757623852778,-1459.67,0.00015915,2]
[384903986,1757623852787,-1066.04,0.00015915,2]
[384903987,1757623852796,-480.0,0.00015915,2]
[384903988,1757623852805,-1378.47,0.00015915,2]
[384903989,1757623852814,-917.24,0.00015915,2]
[384903990,1757623852823,-582.42,0.00015915,2]
[384903991,1757623852833,-1230.82,0.00015915,2]
[384903992,1757623852843,-480.0,0.00015915,2]
[384903993,1757623852853,-412.55,0.00015915,2]
[384903994,1757623852863,-929.07,0.00015915,2]
[384903995,1757623852873,-480.0,0.00015915,2]
[384903996,1757623852884,-581.63,0.00015915,2]
[384903997,1757623852895,-845.24,0.00015915,2]
[384903998,1757623852905,-480.0,0.00015915,2]
[384903999,1757623852915,-480.0,0.00015915,2]
[384904000,1757623852924,-239.37,0.00015915,2]
[384904001,1757623853020,-480.0,0.00015915,2]
[384904002,1757623853029,-1302.02,0.00015915,2]
[384904003,1757623853038,-480.0,0.00015915,2]
[384904004,1757623853047,-480.0,0.00015915,2]
[384904005,1757623853056,-480.0,0.00015915,2]
[384904006,1757623853065,-480.0,0.00015915,2]
[384904007,1757623853074,-480.0,0.00015915,2]
[384904008,1757623853083,-480.0,0.00015915,2]
[384904009,1757623853092,-480.0,0.00015915,2]
[384904010,1757623853101,-480.0,0.00015915,2]
[384904011,1757623853110,-151.0,0.00015916,2]
[384904012,1757623853119,-151.0,0.00015916,2]
[384904013,1757623853127,-151.0,0.00015916,2]
[384904014,1757623853137,-151.0,0.00015916,2]
[384904015,1757623853145,-151.0,0.00015916,2]
[384904016,1757623853155,-1167.17,0.00015916,2]
[384904017,1757623853163,-4528.86,0.00015916,2]
[384904018,1757623853172,-576.59,0.00015916,2]
[384904019,1757623853181,-1294.97,0.00015916,2]
[384904020,1757623853190,-1562.37,0.00015916,2]
[384904021,1757623853199,-480.0,0.00015916,2]
[384904022,1757623853208,-480.0,0.00015916,2]
[384904023,1757623853218,-13912.0,0.00015916,2]
[384904024,1757623853227,-480.0,0.00015916,2]
[384904025,1757623853236,-787.931978,0.00015916,2]
[384904026,1757623853246,-787.931978,0.00015916,2]
[384904027,1757623853255,-787.931978,0.00015916,2]
[384904028,1757623853264,-787.931968,0.00015916,2]
[384904029,1757623853273,-617.3,0.00015917,2]
[384904030,1757623853282,-480.0,0.00015917,2]
[384904031,1757623853292,-480.0,0.00015917,2]
[384904032,1757623853301,-480.0,0.00015917,2]
[384904033,1757623853310,-480.0,0.00015917,2]
[384904034,1757623853319,-480.0,0.00015917,2]
[384904035,1757623853328,-480.0,0.00015919,2]
[384904036,1757623853337,-480.0,0.00015919,2]
[384904037,1757623853346,-2264.10087164,0.00015997,2]
[384904038,1757623853355,-168.0,0.00016032,2]
[384904039,1757623853364,-1500.0,0.00016036,2]
[384904040,1757623853374,-168.0,0.00016037,2]
[384904041,1757623853384,-168.0,0.00016038,2]
[384904042,1757623853393,-1500.0,0.00016065,2]
[384904043,1757623853402,-1500.0,0.00016065,2]
[384904044,1757623853412,-1500.0,0.00016065,2]
[384904045,1757623853422,-1500.0,0.00016075,2]
[384904046,1757623853432,-480.0,0.0001609,2]
[384904047,1757623853441,-1040.91,0.0001609,2]
[384904048,1757623853451,-480.0,0.0001609,2]
[384904049,1757623853460,-168.0,0.00016113,2]
[384904050,1757623853469,-1000.0,0.0001612,2]
[384904051,1757623853479,-1500.0,0.00016139,2]
[384904052,1757623853488,-168.0,0.00016156,2]
[384904053,1757623853497,-1500.0,0.00016171,2]
[384904054,1757623853507,-480.0,0.00016189,2]
[384904055,1757623853516,-418.23,0.00016189,2]
[384904056,1757623853526,-480.0,0.00016189,2]
[384904057,1757623853535,-350.14,0.00016189,2]
[384904058,1757623853544,-480.0,0.00016189,2]
[384904059,1757623853553,-480.0,0.00016189,2]
[384904060,1757623853563,-480.0,0.00016189,2]
[384904061,1757623853571,-242.64,0.00016189,2]
[384904062,1757623853581,-310.16,0.00016189,2]
[384904063,1757623853590,-480.0,0.00016189,2]
[384904064,1757623853600,-635.09,0.00016189,2]
[384904065,1757623853612,-480.0,0.00016189,2]
[384904066,1757623853622,-1459.67,0.00016189,2]
[384904067,1757623853631,-1066.04,0.00016189,2]
[384904068,1757623853642,-480.0,0.00016189,2]
[384904070,1757623853651,-1378.47,0.00016189,2]
[384904072,1757623853661,-917.24,0.00016189,2]
[384904073,1757623853670,-1230.82,0.00016189,2]
[384904074,1757623853679,-155.51,0.00016189,2]
[384904075,1757623853690,-929.07,0.00016189,2]
[384904076,1757623853699,-480.0,0.00016189,2]
[384904077,1757623853709,-845.24,0.00016189,2]
[384904078,1757623853718,-480.0,0.00016189,2]
[384904079,1757623853726,-480.0,0.00016189,2]
[384904080,1757623853736,-1302.02,0.00016189,2]
[384904081,1757623853745,-480.0,0.00016189,2]
[384904082,1757623853754,-313.26,0.00016189,2]
[384904083,1757623853763,-480.0,0.00016189,2]
[384904084,1757623853772,-480.0,0.00016189,2]
[384904085,1757623853780,-480.0,0.00016189,2]
[384904086,1757623853789,-480.0,0.00016189,2]
[384904087,1757623853798,-344.88,0.00016189,2]
[384904088,1757623853806,-188.777586,0.0001619,2]
[384904089,1757623853816,-1167.17,0.0001619,2]
[384904090,1757623853825,-4528.86,0.0001619,2]
[384904091,1757623853834,-576.59,0.0001619,2]
[384904092,1757623853843,-1294.97,0.0001619,2]
[384904093,1757623853851,-151.0,0.0001619,2]
[384904094,1757623853860,-151.0,0.0001619,2]
[384904095,1757623853870,-151.0,0.0001619,2]
[384904096,1757623853879,-151.0,0.0001619,2]
[384904097,1757623853888,-151.0,0.0001619,2]
[384904098,1757623853898,-151.0,0.0001619,2]
[384904099,1757623853907,-1562.37,0.0001619,2]
[384904100,1757623853916,-251.821172,0.0001619,2]
[384904101,1757623853926,-251.821172,0.0001619,2]
[384904102,1757623853935,-251.821172,0.0001619,2]
[384904103,1757623853944,-251.821172,0.0001619,2]
[384904104,1757623853954,-480.0,0.0001619,2]
[384904105,1757623853963,-177.275066,0.0001619,2]
[384904106,1757623853972,-177.275066,0.0001619,2]
[384904107,1757623853982,-177.275066,0.0001619,2]
[384904108,1757623853991,-177.275074,0.0001619,2]
[384904109,1757623854000,-283.106688,0.0001619,2]
[384904111,1757623854009,-283.106688,0.0001619,2]
[384904113,1757623854020,-283.106688,0.0001619,2]
[384904115,1757623854029,-283.106688,0.0001619,2]
[384904117,1757623854038,-151.0,0.0001619,2]
[384904118,1757623854047,-151.0,0.0001619,2]
[384904120,1757623854056,-480.0,0.0001619,2]
[384904122,1757623854064,-13912.0,0.0001619,2]
[384904123,1757623854074,-480.0,0.0001619,2]
[384904125,1757623854083,-480.0,0.00016191,2]
[384904127,1757623854092,-480.0,0.00016191,2]
[384904129,1757623854101,-493.11,0.00016191,2]
[384904131,1757623854110,-151.0,0.00016193,2]
[384904133,1757623854119,-151.0,0.00016193,2]
[384904135,1757623854128,-152.512362,0.00016193,2]
[384904137,1757623854137,-154.649295,0.00016193,2]
[384904139,1757623854146,-480.0,0.00016193,2]
[384904141,1757623854156,-293.52,0.00016193,2]
[384904143,1757623854165,-160.0,0.00016345,2]
[384904145,1757623854174,-480.0,0.00016364,2]
[384904147,1757623854183,-1040.91,0.00016364,2]
[384904149,1757623854192,-480.0,0.00016364,2]
[384904151,1757623854201,-157.0,0.00016438,2]
[384904153,1757623854210,-157.0,0.00016438,2]
[384904155,1757623854219,-157.0,0.00016438,2]
[384904157,1757623854228,-500.0,0.00016438,2]
[384904159,1757623854237,-500.0,0.00016438,2]
[384904161,1757623854247,-168.0,0.00016454,2]
[384904163,1757623854256,-480.0,0.00016463,2]
[384904165,1757623854267,-480.0,0.00016463,2]
[384904167,1757623854276,-480.0,0.00016463,2]
[384904169,1757623854287,-480.0,0.00016463,2]
[384904171,1757623854296,-204.157139,0.00016463,2]
[384904173,1757623854305,-204.157139,0.00016463,2]
[384904175,1757623854314,-204.157139,0.00016463,2]
[384904177,1757623854323,-204.157139,0.00016463,2]
[384904179,1757623854332,-151.0,0.00016463,2]
[384904181,1757623854341,-480.0,0.00016463,2]
[384904183,1757623854351,-635.09,0.00016463,2]
[384904185,1757623854360,-480.0,0.00016463,2]
[384904187,1757623854369,-1459.67,0.00016463,2]
[384904189,1757623854378,-1066.04,0.00016463,2]
[384904190,1757623854391,-944.906474,0.00016463,2]
[384904191,1757623854406,-944.906474,0.00016463,2]
[384904192,1757623854415,-944.906474,0.00016463,2]
[384904193,1757623854425,-944.906474,0.00016463,2]
[384904194,1757623854434,-480.0,0.00016463,2]
[384904195,1757623854444,-237.785628,0.00016463,2]
[384904197,1757623854454,-237.785628,0.00016463,2]
[384904199,1757623854465,-237.785628,0.00016463,2]
[384904201,1757623854474,-237.785628,0.00016463,2]
[384904203,1757623854483,-1378.47,0.00016463,2]
[384904205,1757623854492,-917.24,0.00016463,2]
[384904207,1757623854502,-189.830884,0.00016463,2]
[384904209,1757623854511,-189.830884,0.00016463,2]
[384904211,1757623854520,-189.830884,0.00016463,2]
[384904213,1757623854530,-189.830884,0.00016463,2]
[384904215,1757623854539,-1230.82,0.00016463,2]
[384904217,1757623854553,-652.976066,0.00016463,2]
[384904219,1757623854566,-652.976066,0.00016463,2]
[384904221,1757623854575,-652.976066,0.00016463,2]
[384904223,1757623854585,-652.976066,0.00016463,2]
[384904225,1757623854594,-929.07,0.00016463,2]
[384904227,1757623854608,-480.0,0.00016463,2]
[384904230,1757623854620,-845.24,0.00016463,2]
[384904232,1757623854629,-480.0,0.00016463,2]
[384904234,1757623854639,-480.0,0.00016463,2]
[384904236,1757623854648,-1302.02,0.00016463,2]
[384904237,1757623854657,-480.0,0.00016463,2]
[384904240,1757623854666,-480.0,0.00016463,2]
[384904242,1757623854675,-506.04,0.00016463,2]
[384904244,1757623854685,-480.0,0.00016463,2]
[384904246,1757623854694,-480.0,0.00016463,2]
[384904248,1757623854705,-151.0,0.00016464,2]
[384904250,1757623854714,-151.0,0.00016464,2]
[384904252,1757623854722,-151.0,0.00016464,2]
[384904254,1757623854732,-151.0,0.00016464,2]
[384904256,1757623854742,-151.0,0.00016464,2]
[384904258,1757623854751,-151.0,0.00016464,2]
[384904260,1757623854761,-1167.17,0.00016464,2]
[384904262,1757623854770,-4528.86,0.00016464,2]
[384904264,1757623854780,-576.59,0.00016464,2]
[384904266,1757623854788,-1294.97,0.00016464,2]
[384904276,1757623854868,-1562.37,0.00016464,2]
[384904279,1757623854886,-480.0,0.00016464,2]
[384904281,1757623854896,-480.0,0.00016464,2]